[Event "WYCC 2018 G16"]
[Site "Halkidiki"]
[Date "2018.10.24"]
[Round "6"]
[White "Solozhenkina, Elizaveta"]
[Black "Grigorieva, Yulia"]
[Result "1-0"]
[ECO "D90"]
[WhiteElo "2276"]
[BlackElo "2112"]
[Annotator "NA"]
[PlyCount "61"]
[EventDate "2018.10.20"]
[EventType "swiss"]
[EventCountry "GRE"]
[SourceTitle "playchess.com"]
[Source "ChessBase"]
[SourceQuality "1"]
[TimeControl "40/5400+30:1800+30"]

1. d4 {[%emt 0:00:00]} Nf6 {[%emt 0:00:00]} 2. c4 {[%emt 0:00:00]} g6 {[%emt 0:00:18]} 3. Nc3 {[%emt 0:00:23]} d5 {[%emt 0:00:46]} 4. Nf3 {[%emt 0:07:27]} Bg7 {[%emt 0:01:13]} 5. cxd5 {[%emt 0:01:19]} Nxd5 {[%emt 0:00:45]} 6. g3 {[%emt 0:00:17]} O-O {[%emt 0:03:23]} 7. Bg2 {[%emt 0:00:05]} Nb6 {[%emt 0:01:56]} 8. O-O {[%emt 0:00:42]} Nc6 {[%emt 0:00:41]} 9. e3 {[%emt 0:00:23]} Re8 {[%emt 0:00:58]} 10. Re1 {[%emt 0:00:58]} a5 {[%emt 0:00:33] D76: Fianchetto Grünfeld: Main Line with 7...Nb6} 11. h3 {[%emt 0:06:15] LiveBook: 35 Games} a4 {[%emt 0:06:56]} 12. Rb1 {[%emt 0:05:00]} Ra5 {[%emt 0:03:19]} 13. Nd2 {[%emt 0:08:12]} e5 {[%emt 0:11:59]} 14. b4 {[%emt 0:05:18] [#]} exd4 $146 {[%emt 0:32:02]} ({Predecessor:} 14... axb3 15. Nxb3 Ra8 16. d5 e4 17. Nxe4 Nxd5 18. Nbc5 {½-½ (56) Bauer,C (2612)-Tkachiev,V (2639) Belfort 2010}) 15. bxa5 {[%emt 0:04:37]} dxc3 {[%emt 0:00:06]} 16. axb6 {[%emt 0:01:55]} cxb6 {[%emt 0:03:49]} 17. Qc2 {[%emt 0:07:56]} Nd4 {[%emt 0:08:37]} 18. Qxa4 {[%emt 0:01:47]} b5 {[%emt 0:03:19]} 19. Qa8 {[%emt 0:03:24]} Nc2 {[%emt 0:09:32]} 20. Rd1 $11 {[%emt 0:13:22]} ({White should try} 20. Rf1 $16 cxd2 21. Rd1) 20... Nxe3 {[%emt 0:01:59]} 21. fxe3 {[%emt 0:00:23]} Qd3 {[%emt 0:01:23]} 22. Re1 {[%emt 0:13:57]} Bh6 {[%emt 0:03:24]} 23. Ne4 {[%emt 0:01:41]} Rf8 {[%emt 0:02:24]} 24. Rb4 {[%emt 0:02:07]} Bxh3 {[%emt 0:01:40]} 25. Qxb7 {[%emt 0:00:41]} Bxg2 {[%emt 0:00:33]} 26. Kxg2 {[%emt 0:00:05]} f5 {[%emt 0:00:11]} 27. Nf2 {[%emt 0:01:01]} Qc2 {[%emt 0:00:57]} 28. Qxb5 {[%emt 0:00:18]} Rd8 {[%emt 0:00:25]} 29. Qe2 {[%emt 0:00:17]} Rd2 {[%emt 0:00:46]} 30. Bxd2 {[%emt 0:00:11]} cxd2 {[%emt 0:00:04]} 31. Rd1 {[%emt 0:00:06]} 1-0

[Event "WYCC 2018 G16"]
[Site "Halkidiki"]
[Date "2018.10.24"]
[Round "6"]
[White "Beydullayeva, Govhar"]
[Black "Srdanovic, Jovana"]
[Result "1/2-1/2"]
[ECO "A06"]
[WhiteElo "2202"]
[BlackElo "2072"]
[Annotator "NA"]
[PlyCount "85"]
[EventDate "2018.10.20"]
[EventType "swiss"]
[EventCountry "GRE"]
[SourceTitle "playchess.com"]
[Source "ChessBase"]
[SourceQuality "1"]
[TimeControl "40/5400+30:1800+30"]

1. Nf3 {[%emt 0:00:00]} d5 {[%emt 0:00:00]} 2. g3 {[%emt 0:00:00]} Bg4 {[%emt 0:00:00]} 3. Bg2 {[%emt 0:00:29]} Nd7 {[%emt 0:01:10]} 4. c4 {[%emt 0:00:49]} e6 {[%emt 0:00:10]} 5. cxd5 {[%emt 0:02:17]} exd5 {[%emt 0:00:16]} 6. Nc3 {[%emt 0:04:47]} Ngf6 {[%emt 0:02:27]} 7. d3 {[%emt 0:01:33]} c6 {[%emt 0:03:17]} 8. O-O {[%emt 0:00:49]} Bc5 {[%emt 0:01:54]} 9. Qb3 {[%emt 0:09:14] LiveBook: 92 Games} Bb6 {[%emt 0:01:18]} 10. Na4 {[%emt 0:01:02] A11: English Opening: 1...c6} O-O {[%emt 0:00:14]} 11. Nxb6 {[%emt 0:03:48]} axb6 {[%emt 0:00:05]} (11... Qxb6 12. Qc2 Rfe8 13. h3 Bh5 14. g4 Bg6 15. Nh4 Nf8 16. Kh1 Ne6 17. e3 h5 {1-0 (65) Oparin,G (2616)-Shirov,A (2673) Moscow 2016}) 12. Re1 {[%emt 0:04:56]} Re8 {[%emt 0:11:35]} 13. h3 {[%emt 0:07:31]} Bxf3 {[%emt 0:02:58]} 14. Bxf3 {[%emt 0:00:12] [#]} d4 $146 {[%emt 0:00:43]} ({Predecessor:} 14... b5 15. Bg2 d4 16. Bd2 Qb6 17. Qc2 Re6 {0-1 (37) Skoberne,J (2549)-Shaposhnikov,E (2544) Al Ain 2012}) 15. Bd2 {[%emt 0:12:25]} Nc5 {[%emt 0:13:02]} 16. Qc2 {[%emt 0:00:18]} Ne6 {[%emt 0:00:47]} 17. a4 {[%emt 0:08:57]} Nc7 {[%emt 0:05:40]} 18. Kh2 {[%emt 0:06:33]} Nd7 {[%emt 0:03:42]} 19. Bg2 $11 {[%emt 0:07:45]} Qf6 {[%emt 0:02:27]} 20. Kg1 {[%emt 0:00:15]} h5 {[%emt 0:01:11]} 21. e4 {[%emt 0:09:09]} dxe3 {[%emt 0:13:04]} 22. Bxe3 {[%emt 0:04:28]} Ne6 {[%emt 0:01:13]} 23. d4 {[%emt 0:06:55]} Rac8 {[%emt 0:12:56]} 24. Qd1 {[%emt 0:00:51]} Qf5 {[%emt 0:05:08]} 25. d5 {[%emt 0:01:20]} Nef8 {[%emt 0:00:43]} 26. dxc6 {[%emt 0:00:48]} bxc6 {[%emt 0:00:05]} 27. Rc1 {[%emt 0:02:13]} c5 {[%emt 0:01:37]} 28. Qf3 {[%emt 0:02:17]} Qxf3 {[%emt 0:01:11]} 29. Bxf3 {[%emt 0:00:03]} Ne5 {[%emt 0:00:16]} 30. Be2 {[%emt 0:00:35]} g6 {[%emt 0:00:23]} 31. Red1 {[%emt 0:01:46]} Red8 {[%emt 0:02:29]} 32. f4 {[%emt 0:01:10]} Nc6 {[%emt 0:00:08]} 33. Bb5 {[%emt 0:00:14]} Nb4 {[%emt 0:01:13]} 34. Kf1 {[%emt 0:00:44]} Nd5 {[%emt 0:00:18]} 35. Bf2 {[%emt 0:00:24]} Ne6 {[%emt 0:02:03]} 36. h4 {[%emt 0:00:27]} Ng7 {[%emt 0:01:48]} 37. Bc4 {[%emt 0:00:22]} Nb4 {[%emt 0:01:14]} 38. Ke2 {[%emt 0:00:37]} Nf5 {[%emt 0:00:41]} 39. Rxd8+ {[%emt 0:00:36]} Rxd8 {[%emt 0:00:06]} 40. Rd1 {[%emt 0:00:00]} Rxd1 {[%emt 0:00:00]} 41. Kxd1 {[%emt 0:00:26]} Nc6 {[%emt 0:02:12]} 42. Ke2 {[%emt 0:09:37]} Nd6 {[%emt 0:05:28]} 43. Bd5 {[%emt 0:06:08]} 1/2-1/2

[Event "WYCC 2018 G16"]
[Site "Halkidiki"]
[Date "2018.10.24"]
[Round "6"]
[White "Getman, Tatyana"]
[Black "Rudzinska, Michalina"]
[Result "0-1"]
[ECO "E38"]
[WhiteElo "2195"]
[BlackElo "2073"]
[Annotator "NA"]
[PlyCount "92"]
[EventDate "2018.10.20"]
[EventType "swiss"]
[EventCountry "GRE"]
[SourceTitle "playchess.com"]
[Source "ChessBase"]
[SourceQuality "1"]
[TimeControl "40/5400+30:1800+30"]

1. d4 {[%emt 0:00:00]} Nf6 {[%emt 0:00:00]} 2. c4 {[%emt 0:00:00]} e6 {[%emt 0:00:00]} 3. Nc3 {[%emt 0:00:00]} Bb4 {[%emt 0:00:00]} 4. Qc2 {[%emt 0:00:00]} c5 {[%emt 0:00:00]} 5. e3 {[%emt 0:02:08]} cxd4 {[%emt 0:00:50]} 6. exd4 {[%emt 0:00:08]} O-O {[%emt 0:00:57]} 7. Nf3 {[%emt 0:02:07]} d5 {[%emt 0:00:47]} 8. Bg5 {[%emt 0:02:49]} h6 {[%emt 0:05:43]} 9. Bh4 {[%emt 0:01:00]} Be7 {[%emt 0:02:12]} 10. a3 {[%emt 0:06:23]} b6 {[%emt 0:08:03]} 11. Rd1 {[%emt 0:15:08]} Bb7 {[%emt 0:06:19]} 12. Be2 {[%emt 0:04:14]} dxc4 {[%emt 0:00:37]} 13. O-O {[%emt 0:00:46]} Nbd7 {[%emt 0:00:38]} 14. Ne5 {[%emt 0:02:34]} Rc8 {[%emt 0:02:15]} 15. Bxc4 {[%emt 0:06:23]} Nd5 {[%emt 0:08:55]} 16. Bxe7 {[%emt 0:01:52]} Qxe7 {[%emt 0:00:54]} 17. Bxd5 {[%emt 0:07:06]} Bxd5 {[%emt 0:00:13]} 18. Nxd5 {[%emt 0:07:41]} exd5 {[%emt 0:00:10]} 19. Qf5 {[%emt 0:00:30]} Nxe5 {[%emt 0:03:22]} 20. dxe5 {[%emt 0:02:44]} Qe6 {[%emt 0:01:29]} 21. Qh5 {[%emt 0:01:11]} Rc2 {[%emt 0:04:00]} 22. f4 {[%emt 0:07:13]} Rxb2 {[%emt 0:07:04]} 23. Qf3 {[%emt 0:04:22]} Rc8 {[%emt 0:04:10]} 24. Rf2 {[%emt 0:03:40]} Rxf2 {[%emt 0:01:46]} 25. Qxf2 {[%emt 0:00:32]} Rc3 {[%emt 0:09:04]} 26. a4 {[%emt 0:05:10]} Qc6 {[%emt 0:02:15]} 27. f5 {[%emt 0:05:20]} Rc1 {[%emt 0:03:49]} 28. Qd2 {[%emt 0:01:19]} Qc5+ {[%emt 0:01:08]} 29. Kf1 {[%emt 0:01:42]} Qc4+ {[%emt 0:00:58]} 30. Kg1 {[%emt 0:00:03]} Rxd1+ {[%emt 0:04:00]} 31. Qxd1 {[%emt 0:00:01]} Qe4 {[%emt 0:00:16]} 32. f6 {[%emt 0:00:46]} d4 {[%emt 0:03:27]} 33. fxg7 {[%emt 0:06:48]} Qxe5 {[%emt 0:03:46]} 34. h3 {[%emt 0:01:39]} Qe3+ {[%emt 0:00:54]} 35. Kh1 {[%emt 0:00:15]} d3 {[%emt 0:00:41]} 36. Qg4 {[%emt 0:00:29]} Qc1+ {[%emt 0:10:44]} 37. Kh2 {[%emt 0:00:05]} Qc7+ {[%emt 0:00:40]} 38. Kh1 {[%emt 0:02:22]} d2 {[%emt 0:01:18]} 39. Qe2 {[%emt 0:00:40]} Qc1+ {[%emt 0:00:40]} 40. Kh2 {[%emt 0:00:00]} d1=Q {[%emt 0:00:00]} 41. Qe8+ {[%emt 0:00:15]} Kxg7 {[%emt 0:01:25]} 42. Qe5+ {[%emt 0:00:05]} Kf8 {[%emt 0:00:09]} 43. Qb8+ {[%emt 0:00:52]} Ke7 {[%emt 0:00:08]} 44. Qe5+ {[%emt 0:00:19]} Kd7 {[%emt 0:00:16]} 45. Qf5+ {[%emt 0:00:05]} Kc7 {[%emt 0:00:20]} 46. Qxf7+ {[%emt 0:00:12]} Qd7 {[%emt 0:00:08]} 0-1

[Event "WYCC 2018 G16"]
[Site "Halkidiki"]
[Date "2018.10.24"]
[Round "6"]
[White "Yurasova, Daria"]
[Black "Urh, Zala"]
[Result "0-1"]
[ECO "A07"]
[WhiteElo "2193"]
[BlackElo "2066"]
[Annotator "NA"]
[PlyCount "50"]
[EventDate "2018.10.20"]
[EventType "swiss"]
[EventCountry "GRE"]
[SourceTitle "playchess.com"]
[Source "ChessBase"]
[SourceQuality "1"]
[TimeControl "40/5400+30:1800+30"]

1. Nf3 {[%emt 0:00:00]} d5 {[%emt 0:00:00]} 2. g3 {[%emt 0:01:04]} Bg4 {[%emt 0:02:24]} 3. Bg2 {[%emt 0:01:02]} c6 {[%emt 0:00:08]} 4. O-O {[%emt 0:01:52]} Nf6 {[%emt 0:00:57]} 5. c4 {[%emt 0:02:27]} e6 {[%emt 0:00:14] LiveBook: 935 Games} 6. cxd5 {[%emt 0:00:08]} Bxf3 {[%emt 0:00:09]} 7. Bxf3 {[%emt 0:00:07]} cxd5 {[%emt 0:00:04]} 8. d3 {[%emt 0:00:14]} Nc6 {[%emt 0:03:32]} 9. Nc3 {[%emt 0:10:02]} Be7 {[%emt 0:02:06]} 10. Bf4 {[%emt 0:03:44] A11: English Opening: 1...c6} (10. d4 O-O 11. e3 Rc8 12. Bd2 Nd7 13. Qe2 Nb6 14. Rfd1 Qd7 15. Be1 Rfd8 16. Rac1 a6 17. Bg2 Rc7 18. h4 h6 19. Qc2 {½-½ (19) Cordova,E (2655)-Matlakov,M (2701) Moscow 2017}) 10... O-O {[%emt 0:00:46]} 11. Rc1 {[%emt 0:08:40]} Rc8 {[%emt 0:01:18]} 12. Bg2 {[%emt 0:01:09]} Nd7 $146 {[%emt 0:01:18]} ({Predecessor:} 12... a6 13. a3 b5 14. b4 Qb6 15. Qb3 Rfd8 16. Qb2 h6 17. Rc2 Qb7 {½-½ (65) Shetty,A (2389)-Bartell,T (2344) chess.com INT 2018}) 13. Na4 {[%emt 0:05:58]} b5 {[%emt 0:05:58]} 14. Nc3 {[%emt 0:01:08]} Qb6 {[%emt 0:01:48]} 15. Re1 {[%emt 0:13:55]} Rfd8 {[%emt 0:11:55]} 16. Bxd5 {[%emt 0:16:07]} Bc5 {[%emt 0:13:21]} 17. Bxc6 {[%emt 0:04:15]} Bxf2+ {[%emt 0:02:48]} 18. Kg2 {[%emt 0:02:07]} Bxe1 {[%emt 0:08:16]} 19. Bxd7 {[%emt 0:07:43]} Qf2+ {[%emt 0:00:27]} 20. Kh3 {[%emt 0:00:00]} Qf1+ {[%emt 0:00:36]} 21. Kh4 {[%emt 0:00:02]} Qxf4+ {[%emt 0:00:11]} 22. Kh3 {[%emt 0:01:13]} Qf1+ {[%emt 0:00:42]} 23. Kh4 {[%emt 0:00:03]} g5+ {[%emt 0:04:46]} 24. Kxg5 {[%emt 0:00:19]} Rc5+ {[%emt 0:00:28]} 25. Kh4 {[%emt 0:00:25]} Qf4+ {[%emt 0:00:09]} 0-1

[Event "WYCC 2018 G16"]
[Site "Halkidiki"]
[Date "2018.10.24"]
[Round "6"]
[White "Berdnyk, Mariia"]
[Black "Hajiyeva, Laman"]
[Result "1-0"]
[ECO "C09"]
[WhiteElo "2179"]
[BlackElo "1916"]
[Annotator "ChessBase"]
[PlyCount "153"]
[EventDate "2018.10.20"]
[EventType "swiss"]
[EventCountry "GRE"]
[SourceTitle "playchess.com"]
[Source "ChessBase"]
[SourceQuality "1"]
[TimeControl "40/5400+30:1800+30"]

1. e4 {[%emt 0:00:00]} e6 {[%emt 0:00:00]} 2. d4 {[%emt 0:00:00]} d5 {[%emt 0:00:00]} 3. Nd2 {[%emt 0:00:00]} c5 {[%emt 0:00:00]} 4. exd5 {[%emt 0:00:00]} exd5 {[%emt 0:00:02]} 5. Ngf3 {[%emt 0:01:44]} Nc6 {[%emt 0:00:11]} 6. dxc5 {[%emt 0:01:58]} Bxc5 {[%emt 0:00:27]} 7. Nb3 {[%emt 0:00:16]} Bb6 {[%emt 0:01:55]} 8. Be2 {[%emt 0:05:06]} Nf6 {[%emt 0:03:08]} 9. O-O {[%emt 0:00:44]} O-O {[%emt 0:00:15]} 10. c3 {[%emt 0:01:50]} Re8 {[%emt 0:03:27]} 11. Nfd4 {[%emt 0:07:32]} Ne4 {[%emt 0:04:54]} 12. Bf3 {[%emt 0:07:07]} Ne5 {[%emt 0:08:54]} 13. Bf4 {[%emt 0:07:06]} Nc4 {[%emt 0:05:35]} 14. Qc2 {[%emt 0:09:28]} Qf6 {[%emt 0:01:26]} 15. Bg3 {[%emt 0:02:22]} Bd7 {[%emt 0:06:31]} 16. Rfe1 {[%emt 0:03:30]} Qg6 {[%emt 0:04:16]} 17. Bxe4 {[%emt 0:04:12]} dxe4 {[%emt 0:01:16]} 18. Nd2 {[%emt 0:01:47]} Rac8 {[%emt 0:11:26]} 19. Nxc4 {[%emt 0:02:50]} Rxc4 {[%emt 0:00:20]} 20. Qe2 {[%emt 0:04:01]} Rc5 {[%emt 0:06:01]} 21. Rad1 {[%emt 0:05:13]} Rg5 {[%emt 0:07:51]} 22. Qe3 {[%emt 0:14:51]} h5 {[%emt 0:06:19]} 23. Kh1 {[%emt 0:00:21]} Bg4 {[%emt 0:11:17]} 24. Rd2 {[%emt 0:01:04]} Bd7 {[%emt 0:04:17]} 25. Rg1 {[%emt 0:02:46]} Bc6 {[%emt 0:06:28]} 26. Qe2 {[%emt 0:03:18]} h4 {[%emt 0:03:48]} 27. Bxh4 {[%emt 0:00:52]} Rh5 {[%emt 0:00:41]} 28. Bg3 {[%emt 0:02:17]} e3 {[%emt 0:02:10]} 29. fxe3 {[%emt 0:00:27]} Be4 {[%emt 0:00:45]} 30. Rf1 {[%emt 0:02:04]} Rh3 {[%emt 0:00:43]} 31. Kg1 {[%emt 0:00:55]} Rh5 {[%emt 0:00:27]} 32. Qf2 {[%emt 0:02:36]} f6 {[%emt 0:00:28]} 33. Bf4 {[%emt 0:01:09]} Bd3 {[%emt 0:00:20]} 34. Rfd1 {[%emt 0:00:23]} Be4 {[%emt 0:00:18]} 35. c4 {[%emt 0:02:20]} Ba5 {[%emt 0:00:30]} 36. Nb5 {[%emt 0:01:33]} Bxd2 {[%emt 0:00:23]} 37. Qxd2 {[%emt 0:00:39]} Kh7 {[%emt 0:00:47]} 38. Qe2 {[%emt 0:01:33]} Bc6 {[%emt 0:00:27]} 39. Nd6 {[%emt 0:00:55]} Re6 {[%emt 0:00:08]} 40. Qf2 {[%emt 0:00:00]} Qg4 {[%emt 0:00:00]} 41. Qc2+ {[%emt 0:08:32]} f5 {[%emt 0:08:03]} 42. Rd4 {[%emt 0:04:52]} Qh4 {[%emt 0:04:15]} 43. Qe2 {[%emt 0:05:17]} g6 {[%emt 0:03:28]} 44. b4 {[%emt 0:01:56]} Qe7 {[%emt 0:11:24]} 45. b5 {[%emt 0:01:42]} Be8 {[%emt 0:00:03]} 46. Qd3 {[%emt 0:01:47]} Rh4 {[%emt 0:02:38]} 47. Nxe8 {[%emt 0:01:26]} Qxe8 {[%emt 0:00:40]} 48. Rd8 {[%emt 0:01:20]} Qf7 {[%emt 0:00:57]} 49. Bg5 {[%emt 0:01:28]} Rhe4 {[%emt 0:00:11]} 50. Rd7 {[%emt 0:00:10]} Re7 {[%emt 0:00:03]} 51. Rxe7 {[%emt 0:00:42]} Rxe7 {[%emt 0:00:01]} 52. Bxe7 {[%emt 0:00:06]} Qxe7 {[%emt 0:00:01]} 53. h3 {[%emt 0:01:52]} Qb4 {[%emt 0:02:57]} 54. Qd7+ {[%emt 0:01:19]} Kh6 {[%emt 0:00:03]} 55. Qxb7 {[%emt 0:00:09]} Qe1+ {[%emt 0:00:06]} 56. Kh2 {[%emt 0:00:04]} Qxe3 {[%emt 0:00:04]} 57. Qf3 {[%emt 0:01:36]} Qe5+ {[%emt 0:02:08]} 58. Qg3 {[%emt 0:01:06]} Qd4 {[%emt 0:00:03]} 59. Qb3 {[%emt 0:00:56]} Qe5+ {[%emt 0:00:24]} 60. Qg3 {[%emt 0:00:53]} Qd4 {[%emt 0:00:01]} 61. Qc7 {[%emt 0:01:18]} f4 {[%emt 0:00:11]} 62. Qb8 {[%emt 0:01:00]} Qxc4 {[%emt 0:01:58]} 63. Qxa7 {[%emt 0:00:14]} Qxb5 {[%emt 0:00:24]} 64. Qd4 {[%emt 0:00:44]} Qb8 {[%emt 0:01:56]} 65. Qf2 {[%emt 0:01:57]} Qb4 {[%emt 0:00:24]} 66. Qf3 {[%emt 0:00:17]} Qc4 {[%emt 0:00:27]} 67. a3 {[%emt 0:01:03]} Qa4 {[%emt 0:00:13]} 68. Qc3 {[%emt 0:00:08]} Qe4 {[%emt 0:00:22]} 69. Qh8+ {[%emt 0:01:27]} Kg5 {[%emt 0:00:01]} 70. h4+ {[%emt 0:00:39]} Kf5 {[%emt 0:00:49]} 71. Qf8+ {[%emt 0:00:23]} Kg4 {[%emt 0:01:34]} 72. Qf6 {[%emt 0:00:02]} Qd5 {[%emt 0:00:39]} 73. Qg5+ {[%emt 0:00:10]} Qxg5 {[%emt 0:00:06]} 74. hxg5 {[%emt 0:00:02]} f3 {[%emt 0:00:31]} 75. gxf3+ {[%emt 0:00:16]} Kxf3 {[%emt 0:00:16]} 76. a4 {[%emt 0:00:04]} Ke4 {[%emt 0:00:04]} 77. Kg3 {[%emt 0:00:03]} 1-0

[Event "WYCC 2018 G16"]
[Site "Halkidiki"]
[Date "2018.10.24"]
[Round "6"]
[White "Goltseva, Ekaterina"]
[Black "Gombocz, Zsofia"]
[Result "1-0"]
[ECO "D05"]
[WhiteElo "2169"]
[BlackElo "2038"]
[Annotator "NA"]
[PlyCount "62"]
[EventDate "2018.10.20"]
[EventType "swiss"]
[EventCountry "GRE"]
[SourceTitle "playchess.com"]
[Source "ChessBase"]
[SourceQuality "1"]
[TimeControl "40/5400+30:1800+30"]

1. d4 {[%emt 0:00:00]} d5 {[%emt 0:00:00]} 2. Nf3 {[%emt 0:00:00]} Nf6 {[%emt 0:00:00]} 3. e3 {[%emt 0:00:14]} e6 {[%emt 0:01:57]} 4. Bd3 {[%emt 0:00:28]} Bd6 {[%emt 0:00:44]} 5. b3 {[%emt 0:01:41]} c5 {[%emt 0:01:29]} 6. Bb2 {[%emt 0:01:44]} Nc6 {[%emt 0:01:30]} 7. O-O {[%emt 0:07:51]} O-O {[%emt 0:02:37]} 8. c4 {[%emt 0:04:24] D05: Colle System with ...e6} (8. Nbd2 cxd4 9. exd4 b6 10. a3 Bb7 11. Qe2 Ne7 12. Ne5 Rc8 13. Rfe1 Ng6 14. g3 Qe7 15. f3 Rc7 16. Nf1 Rfc8 17. Ne3 Bxe5 18. dxe5 Nd7 19. f4 Nc5 20. Bd4 Nxd3 {½-½ (20) Tomashevsky,E (2702)-Schroeder,J (2552) Germany 2018}) 8... b6 {[%emt 0:05:07]} 9. Ne5 {[%emt 0:02:49]} Bb7 {[%emt 0:02:53]} 10. Nd2 {[%emt 0:02:16]} Qc7 {[%emt 0:06:30]} 11. f4 {[%emt 0:02:21]} dxc4 $146 {[%emt 0:08:43]} ({Predecessor:} 11... Ne7 12. Rc1 Ne4 13. cxd5 Nxd2 14. Qxd2 exd5 15. Qe2 Nc6 {1-0 (49) Zavadil,M (2018)-Dirgas,J (2023) Brno 2015}) 12. bxc4 {[%emt 0:09:53]} Rad8 {[%emt 0:07:37]} 13. Qe2 {[%emt 0:05:26]} Nb4 {[%emt 0:03:17]} 14. Bb1 {[%emt 0:01:21]} Nd7 {[%emt 0:04:05]} 15. a3 {[%emt 0:16:23]} Na6 {[%emt 0:01:26]} 16. Ndf3 {[%emt 0:09:21]} f5 {[%emt 0:14:35]} 17. Ng5 {[%emt 0:02:49]} Rde8 {[%emt 0:02:52]} 18. Bc2 {[%emt 0:07:46]} h6 {[%emt 0:06:30]} 19. Ngf3 {[%emt 0:04:45]} Nf6 $16 {[%emt 0:06:17]} 20. d5 {[%emt 0:01:56]} Qc8 {[%emt 0:04:17]} 21. Ng6 {[%emt 0:08:23]} Rf7 {[%emt 0:00:53]} 22. Nfe5 {[%emt 0:00:37]} Rc7 {[%emt 0:04:42]} 23. Nh4 {[%emt 0:01:30]} Ne4 {[%emt 0:02:15]} 24. Bxe4 {[%emt 0:02:52]} fxe4 {[%emt 0:00:22]} 25. dxe6 {[%emt 0:00:26]} Rxe6 {[%emt 0:03:38]} 26. Rad1 {[%emt 0:01:25]} Bxe5 {[%emt 0:03:34]} 27. Bxe5 {[%emt 0:00:08]} Rf7 {[%emt 0:00:35]} 28. Ba1 {[%emt 0:01:17]} Qf8 {[%emt 0:03:04]} 29. f5 {[%emt 0:01:07]} Rc6 {[%emt 0:00:27]} 30. Qg4 {[%emt 0:00:29]} Bc8 {[%emt 0:00:59]} 31. Qxe4 {[%emt 0:00:13]} Rcc7 {[%emt 0:00:35]} 1-0

[Event "WYCC 2018 G16"]
[Site "Halkidiki"]
[Date "2018.10.24"]
[Round "6"]
[White "Bach, Ngoc Thuy Duong"]
[Black "Nayberg, Simona"]
[Result "1-0"]
[ECO "D43"]
[WhiteElo "2161"]
[BlackElo "1857"]
[Annotator "NA"]
[PlyCount "81"]
[EventDate "2018.10.20"]
[EventType "swiss"]
[EventCountry "GRE"]
[SourceTitle "playchess.com"]
[Source "ChessBase"]
[SourceQuality "1"]
[TimeControl "40/5400+30:1800+30"]

1. d4 {[%emt 0:00:00]} d5 {[%emt 0:00:00]} 2. c4 {[%emt 0:00:00]} e6 3. Nc3 {[%emt 0:00:00]} c6 {[%emt 0:00:12]} 4. Nf3 {[%emt 0:00:00]} Nf6 {[%emt 0:00:12]} 5. Bg5 {[%emt 0:00:06]} h6 {[%emt 0:00:27]} 6. Bh4 {[%emt 0:00:14]} dxc4 {[%emt 0:00:36]} 7. e4 {[%emt 0:00:20]} g5 {[%emt 0:00:35]} 8. Bg3 {[%emt 0:00:10]} b5 {[%emt 0:00:06]} 9. Be2 {[%emt 0:00:11]} Bb7 {[%emt 0:00:26]} 10. O-O {[%emt 0:00:50]} Nbd7 {[%emt 0:00:16]} 11. Ne5 {[%emt 0:05:20]} h5 {[%emt 0:01:49]} 12. Nxd7 {[%emt 0:07:30]} Qxd7 $11 {[%emt 0:00:24]} 13. Be5 {[%emt 0:02:42]} Rh6 {[%emt 0:01:18]} 14. f4 {[%emt 0:10:13]} g4 {[%emt 0:06:09]} 15. f5 {[%emt 0:03:51]} O-O-O {[%emt 0:11:59]} 16. fxe6 {[%emt 0:05:14]} Qxe6 {[%emt 0:00:32]} 17. Qc2 {[%emt 0:01:38]} a6 {[%emt 0:16:04]} 18. b3 {[%emt 0:10:24]} c5 {[%emt 0:07:42]} 19. bxc4 {[%emt 0:08:39]} b4 {[%emt 0:10:48]} 20. Nd5 {[%emt 0:02:09]} Nxe4 {[%emt 0:06:02]} 21. Qxe4 {[%emt 0:00:24]} f6 {[%emt 0:00:03]} 22. Nb6+ {[%emt 0:09:30]} Qxb6 {[%emt 0:00:48]} 23. Qf5+ {[%emt 0:00:05]} Rd7 {[%emt 0:00:56]} 24. d5 {[%emt 0:03:38]} Bd6 {[%emt 0:13:29]} 25. Bxd6 {[%emt 0:02:39]} Qxd6 {[%emt 0:00:22]} 26. Bd3 {[%emt 0:00:08]} Kc7 {[%emt 0:01:15]} 27. Rae1 {[%emt 0:00:42]} g3 {[%emt 0:08:48]} 28. h4 {[%emt 0:01:27]} Bc8 {[%emt 0:03:03]} 29. Re6 {[%emt 0:03:54]} Qf8 {[%emt 0:00:06]} 30. Qf4+ {[%emt 0:02:02]} Kb7 {[%emt 0:00:57]} 31. Rfe1 {[%emt 0:01:14]} Rh8 {[%emt 0:02:10]} 32. Rxf6 {[%emt 0:00:59]} Qd8 {[%emt 0:00:09]} 33. Rg6 {[%emt 0:01:23]} Rf8 {[%emt 0:02:50]} 34. Qxg3 {[%emt 0:00:56]} Rdf7 {[%emt 0:00:46]} 35. Rf1 {[%emt 0:02:24]} Bg4 {[%emt 0:01:56]} 36. Rxf7+ {[%emt 0:01:44]} Rxf7 {[%emt 0:00:01]} 37. Be4 {[%emt 0:07:22]} Qe8 {[%emt 0:01:27]} 38. Qd6 {[%emt 0:01:20]} Qxe4 {[%emt 0:00:59]} 39. Qb6+ {[%emt 0:00:11]} Kc8 {[%emt 0:00:53]} 40. Rg8+ {[%emt 0:00:00]} Kd7 {[%emt 0:00:00]} 41. Qd8# {[%emt 0:00:41]} 1-0